bitfinex/quotes_SOLUSD_20220211
["timestamp","ask_amount","ask_price","bid_price","bid_amount"]
[1644561382825,4.774,104.74,104.66,0.024]
[1644561383324,4.774,104.74,104.66,36.44068174]
[1644561383526,4.774,104.74,104.67,0.024]
[1644561383726,19.1088,104.74,104.67,14.3584]
[1644561384031,20.45771713,104.74,104.67,14.3584]
[1644561385626,19.1088,104.74,104.67,14.3584]
[1644561385828,15.68371713,104.74,104.67,14.3584]
[1644561386027,15.68371713,104.74,104.67,37.8727]
[1644561389155,20.45871713,104.74,104.67,37.8727]
[1644561390456,20.45871713,104.74,104.67,43.8727]
[1644561391055,20.45871713,104.74,104.67,37.8727]
[1644561391455,20.45871713,104.74,104.68,0.024]
[1644561394359,20.45871713,104.74,104.67,32.8727]
[1644561395057,20.45871713,104.74,104.66,14.3362]
[1644561395459,1.34891713,104.73,104.66,14.3362]
[1644561395658,14.3365,104.72,104.66,14.3362]
[1644561395860,14.3365,104.72,104.65,23.0277]
[1644561396060,47.77393219,104.71,104.65,23.0277]
[1644561396262,47.77393219,104.71,104.65,37.3652]
[1644561397363,52.54993219,104.71,104.65,37.3652]
[1644561397761,66.88783219,104.71,104.65,37.3652]
[1644561398460,62.11183219,104.71,104.65,37.3652]
[1644561398661,1.34891713,104.72,104.66,16.29443992]
[1644561398863,30.81153173,104.75,104.66,79.92443992]
[1644561399063,24.6866146,104.75,104.67,123.4424956]
[1644561399262,24.6866146,104.75,104.68,13.9]
[1644561399466,0.0436146,104.75,104.69,4.774]
[1644561399663,46.34264806,104.75,104.7,67.33312941]
[1644561399862,46.38626266,104.75,104.7,23.6546]
[1644561400063,46.34264806,104.75,104.7,14.3286]
[1644561400466,46.34264806,104.75,104.68,23.57757212]
[1644561400664,4.774,104.74,104.68,13.9]
[1644561401064,20.45721713,104.74,104.66,16.73013992]
[1644561401265,1.34891713,104.72,104.64,2.2309]
[1644561401466,4.776,104.71,104.64,2.2309]
[1644561401770,1.34891713,104.72,104.64,2.2309]
[1644561401967,4.776,104.71,104.64,2.2309]
[1644561402165,40.0006339,104.7,104.64,2.2309]
[1644561403764,14.3404,104.69,104.64,2.2309]
[1644561404165,40.0006339,104.7,104.64,2.2309]
[1644561404166,4.777,104.68,104.64,2.2309]
[1644561404366,4.776,104.69,104.64,2.2309]
[1644561405170,39.63496457,104.66,104.64,2.2309]
[1644561406570,39.63496457,104.66,104.61,4.776]
[1644561406769,39.63496457,104.66,104.57,115.25439003]
[1644561407071,39.63496457,104.66,104.57,76.486]
[1644561407270,53.98016457,104.66,104.57,10.777]
[1644561408073,41.98866804,104.64,104.57,6.0]
[1644561408275,41.98866804,104.64,104.57,0.25]
[1644561408478,56.33726804,104.64,104.57,0.25]
[1644561408676,56.33726804,104.64,104.56,68.38467577]
[1644561408873,61.11726804,104.64,104.56,68.13467577]
[1644561409274,61.11726804,104.64,104.56,70.52911569]
[1644561409875,56.33726804,104.64,104.56,70.52911569]
[1644561410279,56.33726804,104.64,104.56,70.77911569]
[1644561410476,56.33726804,104.64,104.57,0.024]
[1644561410777,56.33726804,104.64,104.58,36.55850636]
[1644561410978,41.98866804,104.64,104.58,36.58250636]
[1644561413177,41.98866804,104.64,104.58,53.57324628]
[1644561413377,41.98866804,104.64,104.6,34.49907662]
[1644561414682,41.98866804,104.64,104.6,40.49907662]
[1644561414885,41.98866804,104.64,104.6,54.84277662]
[1644561416082,41.98866804,104.64,104.6,48.84277662]
[1644561416783,19.1235,104.67,104.6,48.84277662]
[1644561416983,14.3445,104.67,104.6,48.86677662]
[1644561417790,37.36465987,104.66,104.6,48.86677662]
[1644561418283,37.36465987,104.66,104.62,62.45175689]
[1644561419285,23.9145,104.68,104.62,62.45175689]
[1644561419484,23.8662,104.69,104.62,62.47575689]
[1644561419687,1.34891713,104.72,104.62,79.02019681]
[1644561419884,1.34891713,104.72,104.63,22.6976]
[1644561420089,6.12591713,104.73,104.64,14.3625]
[1644561420286,42.14868908,104.72,104.65,0.024]
[1644561421685,42.14868908,104.72,104.65,14.361]
[1644561421886,42.14868908,104.72,104.66,43.53516105]
[1644561422286,42.14868908,104.72,104.66,52.17960097]
[1644561423187,42.14868908,104.72,104.67,14.3338]
[1644561423387,42.14868908,104.72,104.66,43.53516105]
[1644561423886,40.19973357,104.7,104.66,43.53516105]
[1644561424087,40.19973357,104.7,104.65,0.024]
[1644561424288,40.19973357,104.7,104.64,13.924]
[1644561424489,40.19973357,104.7,104.65,0.024]
[1644561424687,40.19973357,104.7,104.64,0.024]
[1644561424886,40.19973357,104.7,104.63,22.6976]
[1644561424887,40.19973357,104.7,104.63,28.7216]
[1644561425088,40.19973357,104.7,104.63,69.9945308]
[1644561425297,54.53973357,104.7,104.63,61.6373308]
[1644561425487,54.53973357,104.7,104.63,55.6373308]
[1644561427291,36.3614158,104.68,104.63,55.6373308]
[1644561428197,4.777,104.69,104.63,55.6373308]
[1644561428392,14.3388,104.71,104.63,61.6373308]
[1644561428393,19.1158,104.71,104.63,61.6373308]
[1644561428593,19.1158,104.71,104.64,0.024]
[1644561428997,19.1158,104.71,104.64,14.3629]
[1644561429194,36.17874791,104.7,104.65,45.37119772]
[1644561430296,36.17874791,104.7,104.65,0.024]
[1644561430499,36.17874791,104.7,104.64,14.3389]
[1644561431296,36.17874791,104.7,104.65,38.73265733]
[1644561431497,36.17874791,104.7,104.65,38.75665733]
[1644561432698,36.17874791,104.7,104.65,53.09435733]
[1644561432901,36.17874791,104.7,104.65,53.07035733]
[1644561434100,36.17874791,104.7,104.64,14.3628]
[1644561434301,36.17874791,104.7,104.64,20.3388]
[1644561434500,36.17874791,104.7,104.64,20.3628]
[1644561435000,36.17874791,104.7,104.64,58.49059947]
[1644561437730,36.17874791,104.7,104.64,58.46659947]
[1644561440230,50.51864791,104.7,104.64,44.12779947]
[1644561440427,50.51864791,104.7,104.64,44.15179947]
[1644561440835,50.51864791,104.7,104.64,6.024]
[1644561441028,50.51864791,104.7,104.64,0.024]
[1644561441233,14.3399,104.7,104.63,20.3639]
[1644561441429,6.12491713,104.71,104.63,20.3639]
[1644561441430,15.68761713,104.71,104.63,20.3639]
[1644561441630,30.52031713,104.72,104.64,0.024]
[1644561441832,1.34891713,104.72,104.65,14.3368]
[1644561442032,1.34891713,104.72,104.65,30.65523992]
[1644561442234,43.06627568,104.73,104.66,38.43267933]
[1644561442732,43.06627568,104.73,104.66,69.39197933]
[1644561443335,1.34891713,104.73,104.66,69.39197933]
[1644561443534,1.34891713,104.73,104.68,57.38]
[1644561443836,0.0436146,104.75,104.68,77.53]
[1644561444035,0.0436146,104.75,104.69,2.39443992]
[1644561444234,1.34891713,104.77,104.69,46.15633992]
[1644561444435,49.4814197,104.76,104.7,35.92432206]
[1644561444634,48.08888797,104.76,104.7,35.92432206]
[1644561444834,48.13250257,104.76,104.7,42.17432206]
[1644561445235,48.13250257,104.76,104.7,35.92432206]
[1644561445435,49.4814197,104.76,104.7,35.92432206]
[1644561445635,49.4378051,104.76,104.7,35.92432206]
[1644561445837,1.34891713,104.75,104.7,35.92432206]
[1644561446037,36.77260673,104.74,104.7,35.92432206]
[1644561446738,36.77260673,104.74,104.7,50.25572206]
[1644561447138,36.77260673,104.74,104.7,14.3314]
[1644561447738,1.39253173,104.75,104.7,14.3314]
[1644561447939,1.34891713,104.75,104.7,14.3314]
[1644561448140,1.39253173,104.76,104.7,14.3314]
[1644561448965,42.82304345,104.75,104.7,49.64623127]
[1644561449144,44.17196058,104.75,104.7,49.64623127]
[1644561449444,42.82304345,104.75,104.7,49.64623127]
[1644561449744,44.17196058,104.75,104.7,49.64623127]
[1644561450443,44.17196058,104.75,104.69,51.8444]
[1644561450647,44.21557518,104.75,104.69,51.8444]
[1644561451044,44.17196058,104.75,104.69,51.8444]
[1644561451444,44.17196058,104.75,104.69,87.65756939]
[1644561451844,58.50486058,104.75,104.69,87.65756939]
[1644561452144,58.50486058,104.75,104.69,73.75756939]
[1644561453846,58.50486058,104.75,104.69,35.81316939]
[1644561454447,63.27886058,104.75,104.69,35.81316939]
[1644561454847,63.27886058,104.75,104.67,42.1527]
[1644561455148,1.39253173,104.74,104.66,13.9]
[1644561455347,14.3372,104.72,104.65,23.1495]
[1644561455848,14.3372,104.72,104.65,59.86313515]
[1644561455849,42.69211833,104.71,104.65,59.86313515]
[1644561456247,42.69211833,104.71,104.65,23.1495]
[1644561456448,57.03031833,104.71,104.65,0.024]
[1644561456751,4.776,104.7,104.64,0.024]
[1644561456948,4.776,104.7,104.63,0.024]
[1644561457348,35.05493864,104.69,104.63,47.92875766]
[1644561457847,35.05493864,104.69,104.64,14.3392]
[1644561458247,35.05493864,104.69,104.64,20.3392]
[1644561460949,35.05493864,104.69,104.64,6.0]
[1644561460950,49.39573864,104.69,104.64,6.0]
[1644561461350,49.39573864,104.69,104.63,0.024]
[1644561461954,49.39573864,104.69,104.6,44.11912817]
[1644561462153,49.39573864,104.69,104.61,0.024]
[1644561462552,72.77903864,104.69,104.61,0.024]
[1644561462762,72.77903864,104.69,104.61,14.367]
[1644561462954,72.77903864,104.69,104.62,0.024]
[1644561463153,72.77903864,104.69,104.62,43.30805753]
[1644561463354,72.77903864,104.69,104.62,49.30805753]
[1644561464155,72.77903864,104.69,104.62,0.024]
[1644561465356,4.777,104.68,104.62,0.024]
[1644561465557,40.78005596,104.67,104.62,0.024]
[1644561465756,40.78005596,104.67,104.61,83.84846948]
[1644561467663,40.78005596,104.67,104.61,89.84846948]
[1644561468066,40.78005596,104.67,104.61,83.84846948]
[1644561468465,40.78005596,104.67,104.61,89.84846948]
[1644561468665,40.78005596,104.67,104.61,83.84846948]
[1644561469068,40.78005596,104.67,104.61,89.84846948]
[1644561469671,40.78005596,104.67,104.61,83.84846948]
[1644561469868,6.12591713,104.71,104.61,155.37846948]
[1644561470069,1.34891713,104.72,104.62,0.024]
[1644561470272,1.39253173,104.72,104.65,14.3356]
[1644561470473,0.0436146,104.73,104.65,14.3596]
[1644561470672,0.0436146,104.73,104.65,20.6096]
[1644561470972,55.83903496,104.73,104.66,38.29931725]
[1644561471174,55.83903496,104.73,104.66,61.23861725]
[1644561471585,41.50343496,104.73,104.67,14.3356]
[1644561471788,41.50343496,104.73,104.68,46.08494375]
[1644561471988,48.6249,104.74,104.68,46.08494375]
[1644561472588,48.6685146,104.74,104.68,46.08494375]
[1644561472789,48.6249,104.74,104.68,46.08494375]
[1644561472988,97.3487861,104.74,104.68,46.08494375]
[1644561473690,97.3487861,104.74,104.69,14.3324]
[1644561474089,97.3487861,104.74,104.7,47.31940539]
[1644561474291,48.7238861,104.74,104.7,47.31940539]
[1644561474989,48.7238861,104.74,104.69,14.3324]
[1644561475189,63.0579861,104.74,104.68,36.9463]
[1644561475390,67.8329861,104.74,104.68,36.9463]
[1644561475690,67.8329861,104.74,104.67,4.775]
[1644561475891,71.57634315,104.74,104.64,45.72871773]
[1644561476090,0.0436146,104.73,104.65,0.024]
[1644561476290,44.54322664,104.7,104.65,0.024]
[1644561476490,43.06884696,104.68,104.64,51.72871773]
[1644561476692,43.06884696,104.68,104.63,14.3644]
[1644561476889,43.06884696,104.68,104.63,0.024]
[1644561477990,57.41104696,104.68,104.63,0.024]
[1644561478590,57.41104696,104.68,104.63,38.20862397]
[1644561479691,57.41104696,104.68,104.63,0.024]
[1644561479890,57.41104696,104.68,104.62,14.3418]
[1644561480493,14.3422,104.68,104.62,14.3418]
[1644561480690,6.12591713,104.7,104.62,14.5918]
[1644561480892,48.60511713,104.71,104.63,0.024]
[1644561481192,47.2562,104.71,104.65,14.3364]
[1644561481391,47.2562,104.71,104.65,20.3364]
[1644561481590,84.06437443,104.71,104.66,35.46806096]
[1644561481991,36.80817443,104.71,104.66,35.46806096]
[1644561482192,36.80817443,104.71,104.66,49.80416096]
[1644561483693,51.14627443,104.71,104.65,0.024]
[1644561483893,4.776,104.7,104.64,0.024]
[1644561484094,4.776,104.7,104.63,47.9543]
[1644561484394,38.15709156,104.71,104.63,53.9543]
[1644561484594,38.15709156,104.71,104.64,42.7303393]
[1644561484796,38.15709156,104.71,104.65,0.024]
[1644561484996,38.15709156,104.71,104.66,39.19888368]
[1644561486196,52.49589156,104.71,104.66,39.19888368]
[1644561487297,15.68771713,104.71,104.66,39.19888368]
[1644561487597,14.3388,104.71,104.66,39.19888368]
[1644561488198,15.72963173,104.72,104.66,61.62948368]
[1644561488397,56.00754181,104.72,104.66,61.62948368]
[1644561488596,41.67044181,104.72,104.66,61.62948368]
[1644561488798,40.32152468,104.72,104.66,61.62948368]
[1644561488996,40.36513928,104.72,104.66,61.62948368]
[1644561489296,40.36513928,104.72,104.66,67.62948368]
[1644561489497,40.36513928,104.72,104.66,61.62948368]
[1644561489696,40.36513928,104.72,104.66,67.62948368]
[1644561490796,0.0436146,104.72,104.66,67.62948368]
[1644561490997,0.0436146,104.73,104.66,67.62948368]
[1644561491199,0.0436146,104.72,104.66,67.62948368]
[1644561491400,0.0436146,104.73,104.66,67.62948368]
[1644561492700,0.0436146,104.73,104.66,72.40448368]
[1644561493303,1.39253173,104.73,104.66,72.40448368]
[1644561493704,41.53919305,104.72,104.66,67.62948368]
[1644561493904,41.58280765,104.72,104.66,67.62948368]
[1644561494304,0.0436146,104.73,104.66,72.40548368]
[1644561494704,0.0436146,104.73,104.66,86.30548368]
[1644561495408,42.88856185,104.73,104.66,86.30548368]
[1644561497707,44.23747898,104.73,104.66,86.30548368]
[1644561498012,44.23747898,104.73,104.66,78.21248368]
[1644561498206,44.23747898,104.73,104.66,73.43648368]
[1644561498407,44.23747898,104.73,104.66,73.68648368]
[1644561498709,42.88856185,104.73,104.66,73.43648368]
[1644561499307,0.0436146,104.73,104.66,78.46148368]
[1644561499506,0.0436146,104.73,104.67,23.7687]
[1644561499708,1.39253173,104.75,104.69,14.3277]
[1644561499908,1.34891713,104.76,104.69,60.2134]
[1644561500108,1.34891713,104.77,104.7,101.57478148]
[1644561500309,0.0436146,104.76,104.7,121.72478148]
[1644561500510,0.0436146,104.76,104.7,124.1192214]
[1644561501511,1.39253173,104.79,104.71,23.5979]
[1644561501710,0.0436146,104.78,104.72,13.9]
[1644561501908,1.39253173,104.79,104.72,13.9]
[1644561502110,0.0436146,104.78,104.72,13.9]
[1644561502313,40.50532501,104.78,104.73,36.63138108]
[1644561502712,40.46171041,104.78,104.73,36.63138108]
[1644561502915,1.39253173,104.79,104.74,14.3255]
[1644561503118,0.0436146,104.79,104.74,14.3255]
[1644561503415,0.0436146,104.8,104.74,33.2475]
[1644561503615,1.34891713,104.82,104.74,39.2475]
[1644561503816,0.0436146,104.8,104.74,39.2475]
[1644561504021,44.71537612,104.81,104.75,35.81246738]
[1644561504215,44.67176152,104.81,104.76,14.3216]
[1644561504417,44.71537612,104.81,104.77,38.60839871]
[1644561504616,44.67176152,104.81,104.77,38.60839871]
[1644561505015,44.67176152,104.81,104.75,23.0029]
[1644561506015,44.67176152,104.81,104.75,70.46067169]
[1644561506818,44.67176152,104.81,104.76,14.3237]
[1644561507016,44.67176152,104.81,104.77,43.40923558]
[1644561508230,44.67176152,104.81,104.77,57.73133558]
[1644561509232,44.67176152,104.81,104.75,23.0029]
[1644561509531,48.45873317,104.81,104.72,22.7825]
[1644561509731,4.8156146,104.8,104.72,22.7825]
[1644561509932,6.16453173,104.8,104.72,22.7825]
[1644561510132,4.8156146,104.8,104.72,22.7825]
[1644561510332,48.32678594,104.79,104.73,34.63297917]
[1644561510533,48.32678594,104.79,104.73,48.96057917]
[1644561512749,62.65448594,104.79,104.73,48.96057917]
[1644561512949,48.32678594,104.79,104.73,48.96057917]
[1644561515753,62.65468594,104.79,104.72,22.7825]
[1644561516056,66.39804299,104.79,104.72,22.7825]
[1644561516752,66.39804299,104.79,104.73,34.32432033]
[1644561518153,4.772,104.78,104.73,34.32432033]
[1644561518353,37.77869464,104.77,104.73,34.32432033]
[1644561518555,37.77869464,104.77,104.72,22.7825]
[1644561518755,37.77869464,104.77,104.73,14.3275]
[1644561519554,37.77869464,104.77,104.72,22.7825]
[1644561519754,37.77869464,104.77,104.72,14.3289]
[1644561519954,37.77869464,104.77,104.7,4.773]
[1644561520154,4.773,104.76,104.7,4.773]
[1644561520555,6.12191713,104.76,104.7,4.773]
[1644561520758,52.13051094,104.75,104.7,4.773]
[1644561520954,4.774,104.74,104.7,4.773]
[1644561521155,36.03694511,104.73,104.7,4.773]
[1644561522854,50.37264511,104.73,104.7,4.773]
[1644561523257,59.07264511,104.73,104.7,4.773]
[1644561524758,50.37264511,104.73,104.7,4.773]
[1644561524958,36.03694511,104.73,104.7,4.773]
[1644561525158,36.03694511,104.73,104.71,6.06439994]
[1644561528563,0.0436146,104.75,104.71,6.06439994]
[1644561528764,0.0436146,104.76,104.71,6.06439994]
[1644561528963,1.34891713,104.78,104.71,6.06439994]
[1644561529163,1.39253173,104.78,104.71,30.47459994]
[1644561529562,46.98299068,104.77,104.72,46.22575771]
[1644561529764,46.98299068,104.77,104.72,60.55475771]
[1644561533764,46.98299068,104.77,104.72,14.329]
[1644561533965,61.31319068,104.77,104.71,38.7404]
[1644561534166,67.47872241,104.77,104.71,24.4102]
[1644561534364,67.43510781,104.77,104.71,24.4102]
[1644561534566,1.34891713,104.76,104.67,13.9]
[1644561534764,48.67474175,104.75,104.67,53.28456044]
[1644561534965,48.71835635,104.75,104.67,53.28456044]
[1644561535165,50.06727348,104.75,104.67,53.28456044]
[1644561535765,14.3341,104.74,104.68,14.3341]
[1644561535967,46.17292939,104.73,104.69,47.5006936]
[1644561536866,14.3341,104.74,104.69,47.5006936]
[1644561537070,1.39253173,104.75,104.69,61.8335936]
[1644561537266,0.0436146,104.75,104.69,61.8335936]
[1644561537467,24.57803173,104.76,104.69,61.8335936]
[1644561537971,46.44576733,104.75,104.69,61.8335936]
[1644561538167,60.77866733,104.75,104.69,61.8335936]
[1644561538366,62.17119906,104.75,104.69,61.8335936]
[1644561538567,62.17119906,104.75,104.69,14.3329]
[1644561539371,4.774,104.74,104.69,14.3329]
[1644561539575,48.20277048,104.73,104.69,14.3329]
[1644561541370,48.20277048,104.73,104.68,37.4932]
[1644561542274,48.20277048,104.73,104.69,36.98829622]
[1644561542473,48.20277048,104.73,104.69,51.32139622]
[1644561551785,15.72533173,104.75,104.69,51.32139622]
[1644561552787,44.45948778,104.74,104.69,51.32139622]
[1644561553186,44.45948778,104.74,104.69,65.22139622]
[1644561553589,1.39253173,104.75,104.69,65.22139622]
[1644561555710,39.76776521,104.74,104.69,65.22139622]
[1644561556407,1.39253173,104.75,104.69,65.22139622]
[1644561557308,1.39253173,104.75,104.69,71.22139622]
[1644561557910,0.0436146,104.75,104.69,71.22139622]
[1644561558110,82.03554585,104.76,104.69,71.22139622]
[1644561558312,1.34891713,104.75,104.69,71.22139622]
[1644561558511,42.9015945,104.74,104.69,71.22139622]
[1644561559915,42.9015945,104.74,104.69,20.3331]
[1644561560214,44.25051163,104.74,104.69,20.3331]
[1644561561819,58.58381163,104.74,104.69,20.3331]
[1644561562220,58.58381163,104.74,104.68,37.4937]
[1644561562418,6.12391713,104.73,104.68,37.4937]
[1644561563322,39.51025452,104.72,104.68,37.4937]
[1644561563519,40.85917165,104.72,104.67,14.3357]
[1644561564721,55.19517165,104.72,104.67,14.3357]
[1644561565020,40.85917165,104.72,104.67,14.3357]
[1644561567123,1.34891713,104.72,104.68,59.08855932]
[1644561567424,6.12391713,104.74,104.68,59.08855932]
[1644561567724,1.34891713,104.74,104.68,75.38299924]
[1644561568028,1.39253173,104.75,104.68,81.38299924]
[1644561568223,49.41676003,104.75,104.68,81.38299924]
[1644561568525,49.46037463,104.75,104.68,81.38299924]
[1644561568723,44.68637463,104.75,104.68,86.15699924]
[1644561568925,1.39253173,104.75,104.68,86.15699924]
[1644561569126,1.39253173,104.75,104.7,71.7111]
[1644561569327,1.39253173,104.76,104.71,18.674]
[1644561569525,1.34891713,104.77,104.71,91.69683992]
[1644561569724,1.34891713,104.77,104.72,2.39443992]
[1644561569924,1.34891713,104.77,104.73,13.9]
[1644561570123,0.0436146,104.79,104.73,61.58479029]
[1644561570124,46.10635459,104.78,104.73,61.58479029]
[1644561570325,46.10635459,104.78,104.74,14.3255]
[1644561571425,1.34891713,104.78,104.75,40.78548782]
[1644561571631,0.0436146,104.79,104.76,6.06439994]
[1644561571632,1.39738658,104.79,104.76,6.06439994]
[1644561571825,1.35377198,104.8,104.76,26.38739994]
[1644561572026,1.35377198,104.81,104.76,40.28739994]
[1644561572326,1.39738658,104.82,104.76,71.05523986]
[1644561572526,0.0436146,104.82,104.77,42.20432784]
[1644561572725,46.26267974,104.83,104.78,28.2187]
[1644561572926,0.0436146,104.82,104.79,40.55917211]
[1644561573127,46.26267974,104.83,104.79,40.55917211]
[1644561573629,44.90890776,104.83,104.79,40.55917211]
[1644561573826,46.26267974,104.83,104.79,40.55917211]
[1644561574026,44.90890776,104.83,104.79,40.55917211]
[1644561574428,44.90890776,104.83,104.78,13.9]
[1644561574627,46.26267974,104.83,104.78,13.9]
[1644561574826,46.26267974,104.83,104.79,14.3187]
[1644561575231,44.90890776,104.83,104.79,14.3187]
[1644561576232,44.90890776,104.83,104.8,42.2883352]
[1644561576431,44.90890776,104.83,104.81,3.03219997]
[1644561577529,44.90890776,104.83,104.8,14.3186]
[1644561577728,44.90890776,104.83,104.79,14.3197]
[1644561578129,44.90890776,104.83,104.77,41.2675]
[1644561578332,44.95252236,104.83,104.77,41.2675]
[1644561578732,44.95252236,104.83,104.77,86.5042368]
[1644561579329,34.61029041,104.81,104.77,81.7352368]
[1644561579529,34.61029041,104.81,104.77,59.1367368]
[1644561579729,34.61029041,104.81,104.78,14.3213]
[1644561579930,34.61029041,104.81,104.79,3.9926725]
[1644561581242,0.0436146,104.83,104.79,3.9926725]
[1644561581432,4.769,104.85,104.79,18.3123725]
[1644561581433,20.48608658,104.85,104.79,18.3123725]
[1644561582134,38.72635233,104.84,104.8,42.1253699]
[1644561582336,38.72635233,104.84,104.79,14.3197]
[1644561583439,38.72635233,104.84,104.79,51.9763573]
[1644561583638,38.72635233,104.84,104.79,14.3197]
[1644561583841,53.04755233,104.84,104.76,37.2524]
[1644561584040,4.8126146,104.83,104.76,37.2524]
[1644561584539,6.16638658,104.83,104.76,13.9]
[1644561584740,47.21224475,104.82,104.76,51.43347526]
[1644561585139,47.25585935,104.82,104.76,51.43347526]
[1644561585338,47.25585935,104.82,104.77,14.3223]
[1644561586738,4.8146146,104.82,104.78,45.77642112]
[1644561586939,4.8126146,104.84,104.78,60.09782112]
[1644561587139,1.39738658,104.85,104.78,60.09782112]
[1644561587757,41.58398294,104.84,104.78,60.09782112]
[1644561588959,45.20933434,104.82,104.78,60.09782112]
[1644561590364,0.0436146,104.83,104.78,60.09782112]
[1644561590560,0.0436146,104.84,104.78,70.26682112]
[1644561590761,0.0436146,104.85,104.78,76.51682112]
[1644561591061,0.0436146,104.85,104.78,103.80612112]
[1644561591262,0.0436146,104.86,104.78,103.80612112]
[1644561591563,38.69752704,104.86,104.78,103.80612112]
[1644561592266,38.69752704,104.86,104.78,93.38712112]
[1644561592464,44.82029902,104.86,104.78,93.38712112]
[1644561592663,44.82029902,104.86,104.78,87.38712112]
[1644561592864,59.13859902,104.86,104.78,87.38712112]
[1644561593463,59.13859902,104.86,104.78,50.54542112]
[1644561593665,42.28711323,104.84,104.78,50.54542112]
[1644561593864,4.769,104.83,104.77,14.3224]
[1644561594066,0.0436146,104.83,104.77,14.3224]
[1644561594269,4.769,104.83,104.77,14.3224]
[1644561594466,4.8126146,104.83,104.77,14.3224]
[1644561594766,19.1347146,104.83,104.77,14.3224]
[1644561595066,35.24894785,104.82,104.77,14.3224]
[1644561595272,35.24894785,104.82,104.75,38.8362]
[1644561595466,4.771,104.81,104.75,38.8362]
[1644561595668,4.8146146,104.81,104.73,13.9]
[1644561595868,14.3707146,104.8,104.71,41.2083]
[1644561596069,4.773,104.79,104.71,41.2083]
[1644561596266,48.41080587,104.78,104.73,14.3273]
[1644561596467,48.36719127,104.78,104.73,14.3273]
[1644561598970,49.72096325,104.78,104.73,14.3273]
[1644561599372,48.36719127,104.78,104.73,14.3273]
[1644561599772,62.69589127,104.78,104.73,14.3273]
[1644561601975,48.36719127,104.78,104.73,14.3273]
[1644561602876,48.36719127,104.78,104.73,13.8273]
[1644561604576,62.69589127,104.78,104.73,13.8273]
[1644561604778,4.773,104.77,104.72,14.329]
[1644561605476,43.48498907,104.76,104.72,14.329]
[1644561605976,43.48498907,104.76,104.7,47.0686]
[1644561606780,43.48498907,104.76,104.7,86.71688881]
[1644561607681,43.48498907,104.76,104.7,101.04858881]
[1644561609983,57.81628907,104.76,104.7,101.04858881]
[1644561610182,43.48498907,104.76,104.7,101.04858881]
[1644561611385,43.48498907,104.76,104.7,61.4003]
[1644561611585,4.774,104.75,104.67,13.924]
[1644561611783,4.774,104.75,104.67,0.024]
[1644561611983,6.12777198,104.75,104.67,0.024]
[1644561612384,43.90488921,104.74,104.67,0.024]
[1644561612587,42.69729436,104.72,104.67,0.024]
[1644561612792,35.7963997,104.7,104.66,4.774]
[1644561612983,35.7963997,104.7,104.67,0.024]
[1644561613184,42.64090992,104.68,104.66,4.774]
[1644561613486,42.64090992,104.68,104.67,0.024]
[1644561613684,14.3402,104.71,104.67,6.06439994]
[1644561614484,19.1129,104.72,104.67,6.06439994]
[1644561614685,44.20614158,104.71,104.67,6.06439994]
[1644561617888,4.776,104.7,104.67,6.06439994]
[1644561618288,45.52126029,104.69,104.67,6.06439994]
[1644561618887,45.52126029,104.69,104.65,0.024]
[1644561619086,45.52126029,104.69,104.64,47.2704]
[1644561619889,45.52126029,104.69,104.64,61.6097]
[1644561622794,45.52126029,104.69,104.65,37.34728334]
[1644561622993,4.777,104.72,104.65,51.68528334]
[1644561623191,14.3375,104.72,104.65,51.70928334]
[1644561623993,39.11302786,104.71,104.65,51.70928334]
[1644561625102,39.11302786,104.71,104.65,14.362]
[1644561627404,43.88902786,104.71,104.65,14.362]
[1644561629529,58.22762786,104.71,104.65,0.024]
[1644561631629,60.62206778,104.71,104.65,0.024]
[1644561631830,83.55906778,104.71,104.63,0.024]
[1644561632029,83.55906778,104.71,104.61,0.024]
[1644561632230,81.16462786,104.71,104.61,0.024]
[1644561632631,81.16462786,104.71,104.61,34.6619046]
[1644561632833,82.51839984,104.71,104.62,0.024]
[1644561633031,81.16462786,104.71,104.62,23.3867]
[1644561634132,81.16462786,104.71,104.62,42.5055]
[1644561634333,82.51839984,104.71,104.62,42.5055]
[1644561634633,81.16462786,104.71,104.62,42.5055]
[1644561635234,76.38862786,104.71,104.62,48.5055]
[1644561635434,62.05002786,104.71,104.65,14.3368]
[1644561635634,39.11302786,104.71,104.65,14.3368]
[1644561635832,39.11302786,104.71,104.65,28.2608]
[1644561636132,39.11302786,104.71,104.65,34.2608]
[1644561636332,39.11302786,104.71,104.65,28.2608]
[1644561636935,39.11302786,104.71,104.66,59.91341427]
[1644561637534,39.11302786,104.71,104.66,14.3362]